[Event "Early-Titled-Tuesday-Blitz-May-28-2024"]
[Site "Chess.com"]
[Date "2024.05.28"]
[Round "8"]
[White "Franmu14"]
[Black "AlbusSevresPotter"]
[Result "0-1"]
[WhiteElo "2703"]
[BlackElo "2567"]
[TimeControl "180+1"]
[EndTime "9:28:15 PDT"]
[Termination "AlbusSevresPotter won by checkmate"]

1. e4 {[%clk 0:03:00.9]} 1... c5 {[%clk 0:02:59.9]} 2. Nc3 {[%clk 0:03:00.5]}
2... a6 {[%clk 0:02:59.6]} 3. d4 {[%clk 0:03:00.1]} 3... cxd4 {[%clk 0:02:59.4]}
4. Qxd4 {[%clk 0:03:01]} 4... Nc6 {[%clk 0:02:59]} 5. Qe3 {[%clk 0:03:01.9]}
5... e6 {[%clk 0:02:56.6]} 6. b3 {[%clk 0:03:02.4]} 6... Nf6 {[%clk 0:02:51.1]}
7. Bb2 {[%clk 0:03:01.9]} 7... d5 {[%clk 0:02:47.9]} 8. exd5 {[%clk 0:02:58.3]}
8... Nxd5 {[%clk 0:02:46.5]} 9. Nxd5 {[%clk 0:02:56.9]} 9... Qxd5 {[%clk
0:02:47.4]} 10. Ne2 {[%clk 0:02:56.9]} 10... Nb4 {[%clk 0:02:34.6]} 11. Qd2
{[%clk 0:02:43.7]} 11... Bc5 {[%clk 0:02:28.2]} 12. a3 {[%clk 0:02:30]} 12...
Bxf2+ {[%clk 0:02:27.6]} 13. Kd1 {[%clk 0:02:28.4]} 13... Qxd2+ {[%clk
0:02:13.1]} 14. Kxd2 {[%clk 0:02:29.3]} 14... Nd5 {[%clk 0:02:14]} 15. Bxg7
{[%clk 0:02:28.4]} 15... Rg8 {[%clk 0:02:14.2]} 16. Bd4 {[%clk 0:02:29]} 16...
Bh4 {[%clk 0:02:02]} 17. c4 {[%clk 0:02:25]} 17... Bg5+ {[%clk 0:01:56.2]} 18.
Kc2 {[%clk 0:02:24]} 18... Ne3+ {[%clk 0:01:40.7]} 19. Bxe3 {[%clk 0:02:20.2]}
19... Bxe3 {[%clk 0:01:41.6]} 20. g3 {[%clk 0:02:20.5]} 20... e5 {[%clk
0:01:41.1]} 21. Bg2 {[%clk 0:02:18]} 21... Bf5+ {[%clk 0:01:40.3]} 22. Kb2
{[%clk 0:02:18.2]} 22... O-O-O {[%clk 0:01:36]} 23. Rad1 {[%clk 0:02:17.3]}
23... Bg4 {[%clk 0:01:33.4]} 24. Rxd8+ {[%clk 0:02:16.9]} 24... Rxd8 {[%clk
0:01:33.1]} 25. Nc3 {[%clk 0:02:14.3]} 25... Rd2+ {[%clk 0:01:31.9]} 26. Ka1
{[%clk 0:02:12.8]} 26... Bd4 {[%clk 0:01:23.9]} 27. Rc1 {[%clk 0:02:12]} 27...
Rd1 {[%clk 0:01:24.2]} 28. Kb1 {[%clk 0:01:59.8]} 28... Rxc1+ {[%clk 0:01:14.8]}
29. Kxc1 {[%clk 0:02:00.1]} 29... Bxc3 {[%clk 0:01:15.7]} 30. b4 {[%clk
0:01:58.7]} 30... Kc7 {[%clk 0:01:14.4]} 31. Kc2 {[%clk 0:01:59]} 31... Bd4
{[%clk 0:01:14.1]} 32. c5 {[%clk 0:01:59.4]} 32... b6 {[%clk 0:01:13.4]} 33.
cxb6+ {[%clk 0:01:57.8]} 33... Kxb6 {[%clk 0:01:14.3]} 34. Kd3 {[%clk
0:01:56.9]} 34... f5 {[%clk 0:01:14.1]} 35. Kc4 {[%clk 0:01:54.7]} 35... Bh5
{[%clk 0:01:04.2]} 36. Kd5 {[%clk 0:01:51.1]} 36... Bf7+ {[%clk 0:01:04.2]} 37.
Kd6 {[%clk 0:01:49.2]} 37... e4 {[%clk 0:01:05.1]} 38. Bh3 {[%clk 0:01:48.4]}
38... e3 {[%clk 0:01:02]} 39. Bf1 {[%clk 0:01:48.3]} 39... Bh5 {[%clk
0:01:02.5]} 40. Ke6 {[%clk 0:01:48.7]} 40... e2 {[%clk 0:01:00.9]} 41. Bxe2
{[%clk 0:01:49.3]} 41... Bxe2 {[%clk 0:01:01.8]} 42. Kxf5 {[%clk 0:01:49]} 42...
Kb5 {[%clk 0:01:02.4]} 43. g4 {[%clk 0:01:49.2]} 43... Ka4 {[%clk 0:01:02.4]}
44. h4 {[%clk 0:01:47.9]} 44... Kxa3 {[%clk 0:01:02.7]} 45. g5 {[%clk
0:01:48.8]} 45... Kxb4 {[%clk 0:01:02.5]} 46. h5 {[%clk 0:01:48.9]} 46... Bxh5
{[%clk 0:01:03]} 47. g6 {[%clk 0:01:49.8]} 47... Bxg6+ {[%clk 0:01:03.9]} 48.
Kg5 {[%clk 0:01:49.2]} 48... a5 {[%clk 0:01:04.4]} 49. Kf4 {[%clk 0:01:50.1]}
49... a4 {[%clk 0:01:05.3]} 50. Kg4 {[%clk 0:01:51]} 50... a3 {[%clk 0:01:06.2]}
51. Kg5 {[%clk 0:01:51.9]} 51... a2 {[%clk 0:01:07.1]} 52. Kh6 {[%clk
0:01:52.8]} 52... a1=Q {[%clk 0:01:08]} 53. Kg5 {[%clk 0:01:53.7]} 53... Qc1+
{[%clk 0:01:08.3]} 54. Kg4 {[%clk 0:01:54.6]} 54... h5+ {[%clk 0:01:07]} 55. Kg3
{[%clk 0:01:54.4]} 55... Qe3+ {[%clk 0:01:06.7]} 56. Kh4 {[%clk 0:01:55.3]}
56... Qf2+ {[%clk 0:01:03.9]} 57. Kh3 {[%clk 0:01:55.5]} 57... Bf5# {[%clk
0:01:04.8]} 0-1

[Event "Early-Titled-Tuesday-Blitz-May-28-2024"]
[Site "Chess.com"]
[Date "2024.05.28"]
[Round "8"]
[White "Actuary44"]
[Black "theoneandonlydaaevik"]
[Result "0-1"]
[WhiteElo "2468"]
[BlackElo "2606"]
[TimeControl "180+1"]
[EndTime "9:28:15 PDT"]
[Termination "theoneandonlydaaevik won by checkmate"]

1. e4 {[%clk 0:03:00.9]} 1... c5 {[%clk 0:02:58.9]} 2. d4 {[%clk 0:03:00.4]}
2... cxd4 {[%clk 0:02:58.7]} 3. c3 {[%clk 0:03:00.9]} 3... d3 {[%clk 0:02:51.4]}
4. Bxd3 {[%clk 0:03:00.4]} 4... Nc6 {[%clk 0:02:50.4]} 5. f4 {[%clk 0:03:01]}
5... g6 {[%clk 0:02:50.8]} 6. Nf3 {[%clk 0:03:01.5]} 6... Bg7 {[%clk 0:02:49.2]}
7. O-O {[%clk 0:03:02]} 7... d6 {[%clk 0:02:48.9]} 8. Kh1 {[%clk 0:03:02.3]}
8... Nf6 {[%clk 0:02:45.3]} 9. Be3 {[%clk 0:03:02.1]} 9... Ng4 {[%clk
0:02:42.8]} 10. Bg1 {[%clk 0:03:00.4]} 10... h5 {[%clk 0:02:37.9]} 11. Nbd2
{[%clk 0:02:58]} 11... Bd7 {[%clk 0:02:35.9]} 12. Ng5 {[%clk 0:02:52.5]} 12...
Bh6 {[%clk 0:02:23.3]} 13. Ndf3 {[%clk 0:02:49]} 13... f6 {[%clk 0:01:51.7]} 14.
Nh3 {[%clk 0:02:47.7]} 14... e5 {[%clk 0:01:48.3]} 15. f5 {[%clk 0:02:37.9]}
15... gxf5 {[%clk 0:01:34.4]} 16. exf5 {[%clk 0:02:33.2]} 16... Ne7 {[%clk
0:01:34.3]} 17. Nh4 {[%clk 0:02:29.8]} 17... Bc6 {[%clk 0:01:32.9]} 18. Nf2
{[%clk 0:02:21.1]} 18... Rg8 {[%clk 0:01:19.7]} 19. h3 {[%clk 0:02:02.8]} 19...
Bg5 {[%clk 0:00:55]} 20. Ng6 {[%clk 0:01:51.9]} 20... Bxg2+ {[%clk 0:00:53.2]}
21. Kxg2 {[%clk 0:01:48.9]} 21... Ne3+ {[%clk 0:00:53.8]} 22. Kf3 {[%clk
0:01:41]} 22... Nxd1 {[%clk 0:00:54.5]} 23. Raxd1 {[%clk 0:01:41.1]} 23... d5
{[%clk 0:00:43.9]} 24. Bb5+ {[%clk 0:01:40.1]} 24... Kf7 {[%clk 0:00:42.9]} 25.
h4 {[%clk 0:01:36.7]} 25... Nxf5 {[%clk 0:00:37.7]} 26. Nxe5+ {[%clk 0:01:29.5]}
26... fxe5 {[%clk 0:00:37.4]} 27. hxg5 {[%clk 0:01:30.2]} 27... Qxg5 {[%clk
0:00:37.1]} 28. Rxd5 {[%clk 0:01:21.5]} 28... Qe3# {[%clk 0:00:34.4]} 0-1

[Event "Early-Titled-Tuesday-Blitz-May-28-2024"]
[Site "Chess.com"]
[Date "2024.05.28"]
[Round "8"]
[White "MaiqMaster"]
[Black "DishonorOnYourCow"]
[Result "0-1"]
[WhiteElo "2466"]
[BlackElo "2590"]
[TimeControl "180+1"]
[EndTime "9:28:19 PDT"]
[Termination "DishonorOnYourCow won by resignation"]

1. e4 {[%clk 0:03:00.9]} 1... c5 {[%clk 0:02:58.4]} 2. Nc3 {[%clk 0:03:00]} 2...
d6 {[%clk 0:02:54.7]} 3. d4 {[%clk 0:02:59.6]} 3... cxd4 {[%clk 0:02:54.5]} 4.
Qxd4 {[%clk 0:03:00.5]} 4... Nc6 {[%clk 0:02:54.6]} 5. Qd2 {[%clk 0:03:00.8]}
5... g6 {[%clk 0:02:55]} 6. b3 {[%clk 0:03:01]} 6... Bg7 {[%clk 0:02:54.4]} 7.
Bb2 {[%clk 0:03:01.1]} 7... Nf6 {[%clk 0:02:54.7]} 8. O-O-O {[%clk 0:03:00.6]}
8... O-O {[%clk 0:02:54.9]} 9. f3 {[%clk 0:02:59.7]} 9... Qa5 {[%clk 0:02:54.9]}
10. Kb1 {[%clk 0:02:56.9]} 10... Bd7 {[%clk 0:02:54.6]} 11. g4 {[%clk 0:02:55]}
11... Rfc8 {[%clk 0:02:51.1]} 12. h4 {[%clk 0:02:51.4]} 12... Bxg4 {[%clk
0:02:31.2]} 13. fxg4 {[%clk 0:02:30.4]} 13... Nxe4 {[%clk 0:02:30.8]} 14. Nxe4
{[%clk 0:02:25.2]} 14... Nb4 {[%clk 0:02:30.6]} 15. a3 {[%clk 0:02:17.6]} 15...
Rxc2 {[%clk 0:02:30]} 16. Qxb4 {[%clk 0:01:21.4]} 16... Rxb2+ {[%clk 0:02:28]}
17. Kc1 {[%clk 0:01:22]} 17... Rc8+ {[%clk 0:02:00.7]} 18. Bc4 {[%clk
0:01:21.4]} 18... Rxc4+ {[%clk 0:01:50.6]} 19. Qxc4 {[%clk 0:01:15.2]} 19...
Qxa3 {[%clk 0:01:49.9]} 20. Qa4 {[%clk 0:01:03.8]} 20... Rb1+ {[%clk 0:01:20.6]}
21. Kd2 {[%clk 0:00:54]} 21... Qb2+ {[%clk 0:01:19.9]} 22. Ke1 {[%clk
0:00:41.5]} 22... Bc3+ {[%clk 0:01:15.9]} 23. Nxc3 {[%clk 0:00:40]} 23... Qxc3+
{[%clk 0:01:16.8]} 24. Ke2 {[%clk 0:00:39.4]} 24... Rb2+ {[%clk 0:01:08.8]} 25.
Kf1 {[%clk 0:00:37.1]} 25... Qf6+ {[%clk 0:01:08.2]} 0-1

[Event "Early-Titled-Tuesday-Blitz-May-28-2024"]
[Site "Chess.com"]
[Date "2024.05.28"]
[Round "8"]
[White "Lion-Al-Messi"]
[Black "janhelmer03"]
[Result "1-0"]
[WhiteElo "2622"]
[BlackElo "2391"]
[TimeControl "180+1"]
[EndTime "9:28:21 PDT"]
[Termination "Lion-Al-Messi won by resignation"]

1. e4 {[%clk 0:02:58.7]} 1... c5 {[%clk 0:02:54.8]} 2. Nf3 {[%clk 0:02:58.6]}
2... d6 {[%clk 0:02:54.3]} 3. d4 {[%clk 0:02:58.1]} 3... cxd4 {[%clk 0:02:54.8]}
4. Nxd4 {[%clk 0:02:59]} 4... Nf6 {[%clk 0:02:55.4]} 5. Nc3 {[%clk 0:02:59.3]}
5... g6 {[%clk 0:02:55]} 6. Be2 {[%clk 0:02:59.1]} 6... Bg7 {[%clk 0:02:55.3]}
7. O-O {[%clk 0:02:58.9]} 7... O-O {[%clk 0:02:55.5]} 8. Be3 {[%clk 0:02:57.6]}
8... Nc6 {[%clk 0:02:55.9]} 9. h3 {[%clk 0:02:57.8]} 9... Nxd4 {[%clk
0:02:32.3]} 10. Bxd4 {[%clk 0:02:57]} 10... Be6 {[%clk 0:02:27.8]} 11. Qd2
{[%clk 0:02:54.8]} 11... a6 {[%clk 0:02:13.4]} 12. f4 {[%clk 0:02:54.2]} 12...
b5 {[%clk 0:02:04.5]} 13. f5 {[%clk 0:02:53.8]} 13... Bd7 {[%clk 0:01:57.4]} 14.
a3 {[%clk 0:02:51.2]} 14... Bc6 {[%clk 0:01:48.8]} 15. Bf3 {[%clk 0:02:49.6]}
15... Qd7 {[%clk 0:01:38.9]} 16. Rae1 {[%clk 0:02:48.4]} 16... a5 {[%clk
0:01:37.7]} 17. b4 {[%clk 0:02:29]} 17... axb4 {[%clk 0:01:36]} 18. axb4 {[%clk
0:02:29.9]} 18... Rfc8 {[%clk 0:01:28.3]} 19. g4 {[%clk 0:02:29.4]} 19... Bb7
{[%clk 0:01:24.5]} 20. g5 {[%clk 0:02:28.7]} 20... Ne8 {[%clk 0:01:21.3]} 21. f6
{[%clk 0:02:22.9]} 21... exf6 {[%clk 0:01:09.8]} 22. Bg4 {[%clk 0:02:22.5]}
22... f5 {[%clk 0:00:57.7]} 23. exf5 {[%clk 0:02:22.2]} 23... Bxd4+ {[%clk
0:00:57.9]} 24. Qxd4 {[%clk 0:02:21.8]} 24... Qc6 {[%clk 0:00:58.3]} 25. Ne4
{[%clk 0:02:17.4]} 25... Qxc2 {[%clk 0:00:32.6]} 26. fxg6 {[%clk 0:02:16.8]}
26... hxg6 {[%clk 0:00:31.3]} 27. Bxc8 {[%clk 0:02:15.3]} 27... Rxc8 {[%clk
0:00:21.6]} 28. Rf2 {[%clk 0:02:14.5]} 28... Qb3 {[%clk 0:00:15.8]} 29. Kh2
{[%clk 0:01:54.4]} 29... Rc2 {[%clk 0:00:12.7]} 30. Nd2 {[%clk 0:01:40.5]} 30...
Ng7 {[%clk 0:00:09.2]} 31. Nxb3 {[%clk 0:01:39.4]} 1-0

[Event "Early-Titled-Tuesday-Blitz-May-28-2024"]
[Site "Chess.com"]
[Date "2024.05.28"]
[Round "8"]
[White "subham777"]
[Black "djokovic74"]
[Result "1-0"]
[WhiteElo "2574"]
[BlackElo "2731"]
[TimeControl "180+1"]
[EndTime "9:28:22 PDT"]
[Termination "subham777 won by resignation"]

1. e4 {[%clk 0:03:00.9]} 1... e6 {[%clk 0:03:00.3]} 2. Nf3 {[%clk 0:03:00.1]}
2... d5 {[%clk 0:03:00.5]} 3. Nc3 {[%clk 0:03:00.5]} 3... Nf6 {[%clk 0:03:00.8]}
4. e5 {[%clk 0:02:58.2]} 4... Nfd7 {[%clk 0:03:01.3]} 5. d4 {[%clk 0:02:58.3]}
5... c5 {[%clk 0:03:01.4]} 6. dxc5 {[%clk 0:02:58.9]} 6... Nc6 {[%clk
0:03:00.7]} 7. Bf4 {[%clk 0:02:58.6]} 7... Bxc5 {[%clk 0:03:01.1]} 8. Bd3 {[%clk
0:02:58.3]} 8... f6 {[%clk 0:03:01.4]} 9. exf6 {[%clk 0:02:58.2]} 9... Nxf6
{[%clk 0:03:01.9]} 10. Qe2 {[%clk 0:02:57.1]} 10... O-O {[%clk 0:03:00.2]} 11.
O-O-O {[%clk 0:02:56.2]} 11... Bd7 {[%clk 0:02:55.8]} 12. Kb1 {[%clk 0:02:47.1]}
12... a6 {[%clk 0:02:55.5]} 13. Ne5 {[%clk 0:02:45.4]} 13... Nxe5 {[%clk
0:02:54.1]} 14. Bxe5 {[%clk 0:02:45.5]} 14... b5 {[%clk 0:02:53.6]} 15. g4
{[%clk 0:02:35.9]} 15... Qe8 {[%clk 0:01:42.6]} 16. g5 {[%clk 0:02:22.1]} 16...
Nh5 {[%clk 0:01:40.4]} 17. g6 {[%clk 0:01:50.4]} 17... Nf4 {[%clk 0:01:37.5]}
18. gxh7+ {[%clk 0:01:43.2]} 18... Kh8 {[%clk 0:01:36.8]} 19. Qg4 {[%clk
0:01:08.3]} 19... Qf7 {[%clk 0:01:33.8]} 20. Rdg1 {[%clk 0:01:06.3]} 20... Nh5
{[%clk 0:01:26]} 21. Qxh5 {[%clk 0:01:00.5]} 21... Be7 {[%clk 0:00:56.4]} 22.
Bxg7+ {[%clk 0:00:56.5]} 22... Qxg7 {[%clk 0:00:55.9]} 23. Rxg7 {[%clk
0:00:57.1]} 23... Kxg7 {[%clk 0:00:56.7]} 24. Rg1+ {[%clk 0:00:45.7]} 24... Kh8
{[%clk 0:00:57.1]} 25. Rg8+ {[%clk 0:00:45.2]} 25... Rxg8 {[%clk 0:00:57.8]} 26.
hxg8=Q+ {[%clk 0:00:46.1]} 26... Kxg8 {[%clk 0:00:58.5]} 27. Qh7+ {[%clk
0:00:46.8]} 27... Kf8 {[%clk 0:00:58.7]} 28. Qh8+ {[%clk 0:00:47.5]} 28... Kf7
{[%clk 0:00:59.4]} 29. Qxa8 {[%clk 0:00:48.1]} 1-0

[Event "Early-Titled-Tuesday-Blitz-May-28-2024"]
[Site "Chess.com"]
[Date "2024.05.28"]
[Round "8"]
[White "KatakuriDono"]
[Black "unbreakablepawn35"]
[Result "1-0"]
[WhiteElo "2276"]
[BlackElo "2362"]
[TimeControl "180+1"]
[EndTime "9:28:22 PDT"]
[Termination "KatakuriDono won by resignation"]

1. d4 {[%clk 0:03:00.9]} 1... Nf6 {[%clk 0:03:00]} 2. Nf3 {[%clk 0:03:01.1]}
2... g6 {[%clk 0:03:00.5]} 3. Nbd2 {[%clk 0:03:01]} 3... Bg7 {[%clk 0:03:00.9]}
4. e4 {[%clk 0:03:00.9]} 4... d6 {[%clk 0:03:01.3]} 5. Bd3 {[%clk 0:03:01]} 5...
O-O {[%clk 0:03:01.7]} 6. O-O {[%clk 0:03:01.2]} 6... Nbd7 {[%clk 0:02:57.6]} 7.
Re1 {[%clk 0:03:01]} 7... e5 {[%clk 0:02:57.3]} 8. c3 {[%clk 0:03:01.3]} 8... c6
{[%clk 0:02:55.3]} 9. b3 {[%clk 0:02:54.6]} 9... Re8 {[%clk 0:02:52.1]} 10. a4
{[%clk 0:02:52.8]} 10... Nh5 {[%clk 0:02:46.6]} 11. Ba3 {[%clk 0:02:49.7]} 11...
Nf8 {[%clk 0:02:40.6]} 12. Nc4 {[%clk 0:02:46.9]} 12... d5 {[%clk 0:02:11]} 13.
Ncxe5 {[%clk 0:02:46.3]} 13... f6 {[%clk 0:01:59.3]} 14. exd5 {[%clk 0:02:26.2]}
14... cxd5 {[%clk 0:01:38.9]} 15. Bb5 {[%clk 0:02:18]} 15... Re6 {[%clk
0:01:09.2]} 16. Ng4 {[%clk 0:01:52.8]} 16... a6 {[%clk 0:00:54.5]} 17. Bf1
{[%clk 0:01:52]} 17... Nf4 {[%clk 0:00:42.4]} 18. Ne3 {[%clk 0:01:48.1]} 18...
Re8 {[%clk 0:00:35]} 19. c4 {[%clk 0:01:41.9]} 19... dxc4 {[%clk 0:00:32.9]} 20.
bxc4 {[%clk 0:01:37.1]} 20... Bd7 {[%clk 0:00:28.3]} 21. Rb1 {[%clk 0:01:35.7]}
21... Qa5 {[%clk 0:00:22.8]} 22. Rxb7 {[%clk 0:01:31.8]} 22... Bc6 {[%clk
0:00:23.2]} 23. Rb1 {[%clk 0:01:17.4]} 23... Bxf3 {[%clk 0:00:21.1]} 24. Qxf3
{[%clk 0:01:15.2]} 24... Qxa4 {[%clk 0:00:21.6]} 25. Bxf8 {[%clk 0:01:12.7]} 1-0

[Event "Early-Titled-Tuesday-Blitz-May-28-2024"]
[Site "Chess.com"]
[Date "2024.05.28"]
[Round "8"]
[White "luca_va99"]
[Black "Cheer_Down"]
[Result "0-1"]
[WhiteElo "2205"]
[BlackElo "2460"]
[TimeControl "180+1"]
[EndTime "9:28:25 PDT"]
[Termination "Cheer_Down won by resignation"]

1. d4 {[%clk 0:02:56.7]} 1... Nf6 {[%clk 0:02:59.2]} 2. c4 {[%clk 0:02:56.8]}
2... g6 {[%clk 0:02:59.5]} 3. Nc3 {[%clk 0:02:57.1]} 3... d5 {[%clk 0:02:59.6]}
4. Nf3 {[%clk 0:02:49.5]} 4... Bg7 {[%clk 0:02:59.1]} 5. Bg5 {[%clk 0:02:47.1]}
5... Ne4 {[%clk 0:02:54.1]} 6. cxd5 {[%clk 0:02:46]} 6... Nxg5 {[%clk
0:02:50.2]} 7. Nxg5 {[%clk 0:02:46.9]} 7... e6 {[%clk 0:02:50.3]} 8. h4 {[%clk
0:02:46.9]} 8... h6 {[%clk 0:01:47.8]} 9. Nf3 {[%clk 0:02:39.4]} 9... exd5
{[%clk 0:01:37.7]} 10. Qb3 {[%clk 0:02:38.9]} 10... c6 {[%clk 0:01:34.7]} 11.
O-O-O {[%clk 0:02:38.8]} 11... a5 {[%clk 0:01:33]} 12. e4 {[%clk 0:02:30.7]}
12... a4 {[%clk 0:01:31.9]} 13. Qc2 {[%clk 0:02:24]} 13... O-O {[%clk
0:01:26.8]} 14. e5 {[%clk 0:02:11.5]} 14... a3 {[%clk 0:01:24.3]} 15. b3 {[%clk
0:02:08.5]} 15... Na6 {[%clk 0:01:24.6]} 16. Na4 {[%clk 0:01:56.4]} 16... Nb4
{[%clk 0:01:22.2]} 17. Qd2 {[%clk 0:01:56.7]} 17... Rxa4 {[%clk 0:01:19]} 18.
bxa4 {[%clk 0:01:55.2]} 18... Qa5 {[%clk 0:01:19.6]} 19. Ne1 {[%clk 0:01:35.5]}
19... Bf5 {[%clk 0:01:07.6]} 20. Nd3 {[%clk 0:01:18.3]} 20... Bxd3 {[%clk
0:01:04.2]} 21. Bxd3 {[%clk 0:01:19.2]} 21... c5 {[%clk 0:01:03.9]} 22. f4
{[%clk 0:01:03.4]} 22... c4 {[%clk 0:00:59.8]} 23. Bc2 {[%clk 0:01:00.9]} 23...
c3 {[%clk 0:01:00.1]} 24. Qd3 {[%clk 0:00:40.9]} 24... Nxa2+ {[%clk 0:00:59.9]}
25. Kb1 {[%clk 0:00:40.6]} 25... Qb4+ {[%clk 0:00:55]} 0-1

[Event "Early-Titled-Tuesday-Blitz-May-28-2024"]
[Site "Chess.com"]
[Date "2024.05.28"]
[Round "8"]
[White "mostafa_sakha"]
[Black "jamesaltucher"]
[Result "1-0"]
[WhiteElo "2297"]
[BlackElo "2055"]
[TimeControl "180+1"]
[EndTime "9:28:37 PDT"]
[Termination "mostafa_sakha won by resignation"]

1. d4 {[%clk 0:02:59.8]} 1... Nf6 {[%clk 0:02:57.7]} 2. c4 {[%clk 0:02:59.6]}
2... g6 {[%clk 0:02:58.2]} 3. Nc3 {[%clk 0:02:58.9]} 3... Bg7 {[%clk 0:02:58.7]}
4. e4 {[%clk 0:02:59.1]} 4... d6 {[%clk 0:02:59.1]} 5. Nf3 {[%clk 0:02:59.1]}
5... O-O {[%clk 0:02:58.9]} 6. Be2 {[%clk 0:02:59.6]} 6... e5 {[%clk 0:02:57.9]}
7. O-O {[%clk 0:03:00.1]} 7... Nc6 {[%clk 0:02:58.1]} 8. d5 {[%clk 0:03:00.1]}
8... Ne7 {[%clk 0:02:58.4]} 9. Ne1 {[%clk 0:03:00.7]} 9... Nd7 {[%clk
0:02:58.3]} 10. Be3 {[%clk 0:03:01.2]} 10... f5 {[%clk 0:02:58.6]} 11. f3 {[%clk
0:03:01.8]} 11... f4 {[%clk 0:02:58.7]} 12. Bf2 {[%clk 0:03:02.3]} 12... g5
{[%clk 0:02:59]} 13. Nd3 {[%clk 0:03:02.7]} 13... Rf6 {[%clk 0:02:54.7]} 14. c5
{[%clk 0:03:02.2]} 14... Rh6 {[%clk 0:02:52.7]} 15. c6 {[%clk 0:02:50.6]} 15...
bxc6 {[%clk 0:02:46]} 16. dxc6 {[%clk 0:02:50.8]} 16... Nxc6 {[%clk 0:02:24.3]}
17. Nd5 {[%clk 0:02:48.8]} 17... Kh8 {[%clk 0:02:07]} 18. Rc1 {[%clk 0:02:44.1]}
18... Nd4 {[%clk 0:01:52]} 19. Rxc7 {[%clk 0:02:32.5]} 19... Nb6 {[%clk
0:01:47.7]} 20. Bxd4 {[%clk 0:02:26.4]} 20... Nxd5 {[%clk 0:01:45.2]} 21. Rc1
{[%clk 0:01:52.2]} 21... exd4 {[%clk 0:01:39.5]} 22. exd5 {[%clk 0:01:51.3]}
22... Qe8 {[%clk 0:01:37.2]} 23. Rf2 {[%clk 0:01:34.2]} 23... Qh5 {[%clk
0:01:30.7]} 24. h3 {[%clk 0:01:33.8]} 24... Bxh3 {[%clk 0:01:22.6]} 25. gxh3
{[%clk 0:01:32.9]} 25... Qxh3 {[%clk 0:01:22.5]} 26. Rg2 {[%clk 0:01:32.8]}
26... Re8 {[%clk 0:01:15.8]} 27. Nf2 {[%clk 0:01:29.8]} 27... Qh4 {[%clk
0:01:10.8]} 28. Bd3 {[%clk 0:01:26.7]} 28... Rf6 {[%clk 0:00:59.7]} 29. Qa4
{[%clk 0:01:23.5]} 29... Rff8 {[%clk 0:00:58.3]} 30. Ne4 {[%clk 0:01:17.1]}
30... h5 {[%clk 0:00:55.8]} 31. Rh2 {[%clk 0:00:58.9]} 1-0

[Event "Early-Titled-Tuesday-Blitz-May-28-2024"]
[Site "Chess.com"]
[Date "2024.05.28"]
[Round "8"]
[White "GambitGiesbergen"]
[Black "NowInChess"]
[Result "1-0"]
[WhiteElo "2355"]
[BlackElo "2228"]
[TimeControl "180+1"]
[EndTime "9:28:38 PDT"]
[Termination "GambitGiesbergen won on time"]

1. h4 {[%clk 0:03:00.9]} 1... d5 {[%clk 0:02:51.6]} 2. Nf3 {[%clk 0:02:56.1]}
2... Nf6 {[%clk 0:02:48.9]} 3. c4 {[%clk 0:02:47.1]} 3... dxc4 {[%clk
0:02:45.1]} 4. e3 {[%clk 0:02:44.9]} 4... Bg4 {[%clk 0:02:34.3]} 5. Bxc4 {[%clk
0:02:43.4]} 5... e6 {[%clk 0:02:33.9]} 6. Nc3 {[%clk 0:02:42.3]} 6... Nbd7
{[%clk 0:02:29.1]} 7. b3 {[%clk 0:02:19.4]} 7... Be7 {[%clk 0:02:22.2]} 8. Be2
{[%clk 0:02:15.8]} 8... c5 {[%clk 0:02:06.6]} 9. Bb2 {[%clk 0:02:15.5]} 9... a6
{[%clk 0:02:02.3]} 10. d3 {[%clk 0:02:14.9]} 10... Rc8 {[%clk 0:01:58.8]} 11. a3
{[%clk 0:02:11.1]} 11... Qa5 {[%clk 0:01:51.6]} 12. Kf1 {[%clk 0:02:07.5]} 12...
b5 {[%clk 0:01:46]} 13. Qc2 {[%clk 0:01:53.3]} 13... Qc7 {[%clk 0:01:24.2]} 14.
Nb1 {[%clk 0:01:40.9]} 14... Nb6 {[%clk 0:01:19.7]} 15. Nbd2 {[%clk 0:01:41.1]}
15... Nbd5 {[%clk 0:01:11.2]} 16. Rc1 {[%clk 0:01:40.7]} 16... Qd7 {[%clk
0:01:05.5]} 17. Qb1 {[%clk 0:01:39.2]} 17... Nb6 {[%clk 0:00:49.4]} 18. Kg1
{[%clk 0:01:36]} 18... a5 {[%clk 0:00:41]} 19. Ne5 {[%clk 0:01:35.8]} 19... Bxe2
{[%clk 0:00:16.7]} 20. Nxd7 {[%clk 0:01:32]} 20... Nbxd7 {[%clk 0:00:16.9]} 21.
f3 {[%clk 0:01:29.6]} 21... Nd5 {[%clk 0:00:06.2]} 22. Kf2 {[%clk 0:01:28.7]}
22... Bf6 {[%clk 0:00:03]} 23. Kxe2 {[%clk 0:01:27.3]} 23... Bxb2 {[%clk
0:00:02.1]} 24. Qxb2 {[%clk 0:01:28.2]} 24... N7f6 {[%clk 0:00:02.6]} 25. Ne4
{[%clk 0:01:27.4]} 25... a4 {[%clk 0:00:02]} 26. bxa4 {[%clk 0:01:26.9]} 26...
bxa4 {[%clk 0:00:00.9]} 27. Nd6+ {[%clk 0:01:27.1]} 27... Ke7 {[%clk 0:00:00.6]}
28. Nxc8+ {[%clk 0:01:26.1]} 28... Rxc8 {[%clk 0:00:01.5]} 29. Rb1 {[%clk
0:01:25.7]} 1-0